bitfinex-derivatives/quotes_BTCF0:USTF0_20230702
["timestamp","ask_amount","ask_price","bid_price","bid_amount"]
[1688320535370,0.35105766,30510.0,30507.0,0.40523994]
[1688320535576,0.35105766,30510.0,30509.0,0.01747571]
[1688320535780,0.35105766,30510.0,30508.0,0.019666]
[1688320536778,0.35105766,30510.0,30507.0,0.40523994]
[1688320540380,0.35105766,30510.0,30508.0,0.01747653]
[1688320540682,0.35105766,30510.0,30508.0,0.03714153]
[1688320540873,0.35105766,30510.0,30508.0,0.019665]
[1688320542880,0.35105766,30510.0,30507.0,0.379166]
[1688320543081,0.35105766,30510.0,30507.0,0.33]
[1688320543787,0.35105766,30510.0,30507.0,0.349665]
[1688320544174,0.35105766,30510.0,30507.0,0.36851445]
[1688320544482,0.35105766,30510.0,30507.0,0.349665]
[1688320544881,0.35105766,30510.0,30506.0,0.43636595]
[1688320545081,0.35105766,30510.0,30506.0,0.38719795]
[1688320546887,0.35765766,30510.0,30506.0,0.02639795]
[1688320547283,0.2476,30507.0,30504.0,0.3173]
[1688320547498,0.2458,30505.0,30503.0,0.019668]
[1688320547789,0.267267,30504.0,30503.0,0.019668]
[1688320547991,0.26785328,30504.0,30503.0,0.019668]
[1688320548281,0.26785328,30504.0,30503.0,0.0461938]
[1688320548476,0.26785328,30504.0,30503.0,0.06504325]
[1688320548671,0.26785328,30504.0,30503.0,0.03851745]
[1688320549279,0.26785328,30504.0,30503.0,0.019668]
[1688320550079,0.267267,30504.0,30503.0,0.019668]
[1688320551482,0.267267,30504.0,30503.0,0.03851745]
[1688320552990,0.267267,30504.0,30503.0,0.019668]
[1688320554484,0.267267,30504.0,30503.0,0.03851745]
[1688320555286,0.267267,30504.0,30503.0,0.05956497]
[1688320556387,0.267267,30504.0,30503.0,0.04071552]
[1688320568296,0.267267,30504.0,30503.0,0.02104752]
[1688320568694,0.267267,30504.0,30502.0,0.38687955]
[1688320568999,0.019669,30501.0,30500.0,0.165567]
[1688320569302,0.265469,30501.0,30500.0,0.1]
[1688320569486,0.265469,30501.0,30500.0,0.116]
[1688320570392,0.265469,30501.0,30500.0,0.1386713]
[1688320570591,0.265469,30501.0,30500.0,0.1583413]
[1688320572589,0.265469,30501.0,30500.0,0.1386713]
[1688320575698,0.510769,30501.0,30496.0,0.3608]
[1688320575898,0.2463,30497.0,30496.0,0.6811]
[1688320576099,0.265972,30497.0,30496.0,0.380473]
[1688320576699,0.595672,30497.0,30496.0,0.700773]
[1688320577704,0.847872,30497.0,30490.0,0.06417184]
[1688320577895,0.4948,30491.0,30490.0,0.346976]
[1688320578098,0.514476,30491.0,30488.0,0.019678]
[1688320578295,0.2476,30489.0,30487.0,0.019678]
[1688320578501,0.267278,30488.0,30487.0,0.346978]
[1688320578907,0.267278,30488.0,30487.0,0.3273]
[1688320579205,0.267278,30488.0,30486.0,0.38733037]
[1688320579512,0.267278,30488.0,30475.0,0.06544231]
[1688320579513,0.085383,30480.0,30475.0,0.06544231]
[1688320579692,0.904716,30476.0,30475.0,0.21717239]
[1688320579898,1.647816,30476.0,30475.0,0.19612387]
[1688320580099,0.05,30474.0,30467.0,0.09805775]
[1688320580300,1.8383,30468.0,30466.0,0.13074364]
[1688320580508,1.25285718,30467.0,30466.0,0.13074364]
[1688320580803,1.54791893,30467.0,30461.0,0.06537292]
[1688320581107,1.54791893,30467.0,30461.0,0.05439551]
[1688320581108,0.514895,30462.0,30461.0,0.05439551]
[1688320581305,1.690495,30462.0,30456.0,0.02985775]
[1688320581507,1.236498,30457.0,30456.0,0.02985775]
[1688320581699,0.059088,30461.0,30454.0,0.069699]
[1688320581700,0.19945806,30456.0,30454.0,0.069699]
[1688320581902,0.00049251,30460.0,30455.0,0.39787914]
[1688320582211,1.656985,30465.0,30464.0,0.069693]
[1688320582212,0.3608,30465.0,30464.0,0.069693]
[1688320582407,0.3608,30468.0,30464.0,0.069693]
[1688320582599,0.4952,30465.0,30464.0,0.10434109]
[1688320582796,0.4952,30465.0,30464.0,0.05434109]
[1688320583001,0.4952,30465.0,30462.0,0.049237]
[1688320583201,0.00049239,30467.0,30464.0,0.02598621]
[1688320583506,0.05,30464.0,30460.0,0.019696]
[1688320583706,0.05,30460.0,30456.0,0.345299]
[1688320583900,0.2455,30456.0,30453.0,0.06503197]
[1688320584100,0.4908,30454.0,30453.0,0.08473197]
[1688320584302,0.49061688,30454.0,30453.0,0.08473197]
[1688320584906,0.2456,30454.0,30453.0,0.44553197]
[1688320585105,0.24554,30454.0,30453.0,0.48261111]
[1688320585401,0.2463,30454.0,30453.0,0.44553197]
[1688320585705,0.2463,30454.0,30453.0,0.48261111]
[1688320586001,0.00049255,30457.0,30453.0,0.46438142]
[1688320586207,0.05,30464.0,30457.0,0.019698]
[1688320586405,0.05,30464.0,30461.0,0.019695]
[1688320586595,0.2476,30462.0,30461.0,0.019695]
[1688320586795,0.2476,30466.0,30461.0,0.28474445]
[1688320587000,0.019688,30472.0,30465.0,0.987093]
[1688320587203,0.24809231,30472.0,30471.0,0.266989]
[1688320587409,0.24809231,30472.0,30471.0,0.30406814]
[1688320587907,0.24809231,30472.0,30471.0,0.05676814]
[1688320588101,0.26778031,30472.0,30471.0,0.019689]
[1688320588908,0.87578031,30472.0,30465.0,0.00049231]
[1688320589105,0.2452,30466.0,30465.0,0.00049231]
[1688320589306,0.625692,30466.0,30465.0,0.00049231]
[1688320589604,0.05,30462.0,30458.0,0.019697]
[1688320589809,0.3608,30459.0,30454.0,0.3805]
[1688320590111,0.387699,30455.0,30453.0,0.3279]
[1688320590303,0.019699,30455.0,30453.0,0.3279]
[1688320590705,0.019699,30455.0,30453.0,0.36644945]
[1688320590910,0.019699,30455.0,30454.0,0.02590874]
[1688320591603,0.019699,30455.0,30454.0,0.06298788]
[1688320591805,0.019699,30455.0,30454.0,0.44348788]
[1688320592004,0.00065291,30455.0,30454.0,0.80918788]
[1688320592207,0.00049255,30457.0,30455.0,0.0657]
[1688320592413,0.4149,30466.0,30456.0,0.78537814]
[1688320592609,0.05,30466.0,30464.0,0.3608]
[1688320592809,0.368,30467.0,30465.0,0.03792269]
[1688320593019,0.417,30470.0,30466.0,0.3647]
[1688320593212,0.367,30470.0,30469.0,0.3608]
[1688320593422,0.05,30478.0,30471.0,0.0657]
[1688320593714,0.05,30478.0,30477.0,0.380485]
[1688320593905,0.05,30478.0,30477.0,0.019685]
[1688320594212,0.05,30474.0,30473.0,0.019687]
[1688320594408,0.4175,30474.0,30473.0,0.019687]
[1688320594815,0.6528,30474.0,30473.0,0.019687]
[1688320595720,0.672487,30474.0,30473.0,0.019687]
[1688320596020,0.672487,30474.0,30473.0,0.035687]
[1688320596316,0.672487,30474.0,30473.0,0.016]
[1688320597821,0.672487,30474.0,30473.0,0.03104201]
[1688320598219,1.033287,30474.0,30473.0,0.03104201]
[1688320598420,1.033287,30474.0,30468.0,0.049227]
[1688320598421,1.033287,30474.0,30463.0,0.3608]
[1688320598609,0.3608,30471.0,30468.0,0.049227]
[1688320598816,0.6069,30469.0,30468.0,0.049227]
[1688320599115,0.62659,30469.0,30468.0,0.049227]
[1688320599418,0.62659,30469.0,30465.0,0.06613431]
[1688320599727,0.626592,30466.0,30465.0,0.06613431]
[1688320600317,0.676592,30466.0,30465.0,0.00983946]
[1688320600514,1.280392,30466.0,30460.0,0.019695]
[1688320600717,0.6046,30461.0,30460.0,0.019695]
[1688320600929,0.624295,30461.0,30457.0,0.02686058]
[1688320601230,0.676597,30458.0,30455.0,0.693998]
[1688320601414,0.6069,30456.0,30455.0,0.019698]
[1688320601613,0.069697,30458.0,30455.0,0.019698]
[1688320601925,0.069697,30458.0,30456.0,0.01822969]
[1688320602124,0.069697,30458.0,30457.0,0.019698]
[1688320602422,0.71053751,30459.0,30457.0,0.019698]
[1688320602423,0.6069,30459.0,30457.0,0.39872769]
[1688320602727,0.00049251,30460.0,30458.0,0.3608]
[1688320602922,0.00049251,30460.0,30459.0,0.019696]
[1688320603222,0.019693,30465.0,30459.0,0.622196]
[1688320603424,0.019693,30465.0,30464.0,0.380493]
[1688320603619,0.01969,30469.0,30464.0,0.45845361]
[1688320603815,0.05,30470.0,30468.0,0.019691]
[1688320604011,0.05,30470.0,30469.0,0.03707914]
[1688320604211,0.6234803,30473.0,30470.0,0.019689]
[1688320604618,0.6234803,30473.0,30470.0,0.05676814]
[1688320604824,0.6234803,30473.0,30470.0,0.380489]
[1688320605327,0.6234803,30473.0,30470.0,0.39871869]
[1688320605923,0.6069,30471.0,30470.0,0.019689]
[1688320606527,0.6069,30471.0,30470.0,0.380489]
[1688320606712,0.019689,30472.0,30470.0,0.44021992]
[1688320606912,0.019689,30472.0,30470.0,0.42137047]
[1688320607122,0.019689,30472.0,30470.0,0.019689]
[1688320607823,0.019689,30472.0,30470.0,0.39871869]
[1688320608023,0.019689,30472.0,30470.0,0.380489]
[1688320608227,0.6073923,30473.0,30471.0,0.03992255]
[1688320608520,0.6073923,30473.0,30472.0,0.019688]
[1688320608726,0.6233923,30473.0,30472.0,0.019688]
[1688320608926,0.6430793,30473.0,30472.0,0.02253161]
[1688320609920,0.6430793,30473.0,30472.0,0.019688]
[1688320613229,1.0038793,30473.0,30472.0,0.019688]
[1688320614927,1.0038793,30473.0,30469.0,0.01969]
[1688320615129,0.62659,30470.0,30469.0,0.01969]
[1688320617824,0.67659,30470.0,30468.0,0.049226]
[1688320618134,0.019691,30468.0,30466.0,0.0595693]
[1688320618335,0.987392,30467.0,30466.0,0.0595693]
[1688320619531,0.987392,30467.0,30466.0,0.06684908]
[1688320620037,0.987392,30467.0,30463.0,0.019694]
[1688320620038,0.05,30464.0,30463.0,0.019694]
[1688320620240,0.674294,30464.0,30463.0,0.019694]
[1688320620737,1.035094,30464.0,30463.0,0.019694]
[1688320620935,1.035094,30464.0,30462.0,0.059086]
[1688320621136,1.035094,30464.0,30461.0,0.019695]
[1688320621338,0.6069,30462.0,30461.0,0.019695]
[1688320621633,0.626595,30462.0,30461.0,0.019695]
[1688320621839,0.626595,30462.0,30461.0,0.04440646]
[1688320622338,0.626595,30462.0,30461.0,0.02617677]
[1688320622935,0.626595,30462.0,30461.0,0.019695]
[1688320625238,0.099245,30459.0,30455.0,0.02654393]
[1688320625424,0.380498,30457.0,30456.0,0.019699]
[1688320625631,0.380498,30457.0,30456.0,0.01017654]
[1688320625829,0.380498,30457.0,30456.0,0.016]
[1688320626034,0.380498,30457.0,30456.0,0.02745894]
[1688320626742,0.380498,30457.0,30456.0,0.016]
[1688320626937,0.05,30455.0,30454.0,0.00018401]
[1688320627131,0.430499,30455.0,30454.0,0.00018401]
[1688320627842,1.037399,30455.0,30454.0,0.01292492]
[1688320628232,1.043999,30455.0,30454.0,0.01292492]
[1688320628736,1.043999,30455.0,30449.0,0.04610134]
[1688320629036,0.019702,30450.0,30449.0,0.04610134]
[1688320629238,0.07161155,30450.0,30449.0,0.06580434]
[1688320629441,0.656157,30451.0,30450.0,0.02228304]
[1688320629633,0.656157,30451.0,30450.0,0.04198504]
[1688320630438,0.656157,30451.0,30450.0,0.05186172]
[1688320630641,0.049257,30451.0,30450.0,0.07009141]
[1688320631032,0.049257,30451.0,30450.0,0.08894086]
[1688320631437,0.049257,30451.0,30450.0,0.07071117]
[1688320631748,0.049257,30451.0,30450.0,0.08894086]
[1688320633240,0.666006,30452.0,30450.0,0.08894086]
[1688320633435,0.059106,30452.0,30451.0,0.03707914]
[1688320633639,0.02019462,30453.0,30451.0,0.06469337]
[1688320633845,0.02019462,30453.0,30452.0,0.37902969]
[1688320634147,0.02019462,30453.0,30452.0,0.42549252]
[1688320635544,0.00049262,30453.0,30452.0,0.42549252]
[1688320635750,0.019697,30458.0,30452.0,1.03239252]
[1688320636042,0.019697,30458.0,30457.0,0.019698]
[1688320636251,0.019697,30458.0,30457.0,0.11117265]
[1688320637243,0.019697,30458.0,30457.0,0.09294296]
[1688320637443,0.019697,30458.0,30457.0,0.11117265]
[1688320639048,0.00049249,30461.0,30457.0,0.71807265]
[1688320639252,0.00049249,30461.0,30460.0,0.3608]
[1688320639539,0.00049249,30461.0,30460.0,0.983996]
[1688320639742,0.069691,30467.0,30460.0,0.983996]
[1688320639955,0.069691,30467.0,30463.0,0.9658]
[1688320640253,0.069691,30467.0,30464.0,0.07408851]
[1688320640456,0.069691,30467.0,30465.0,0.01822969]
[1688320640752,0.069691,30467.0,30466.0,0.019692]
[1688320640953,0.069691,30467.0,30466.0,0.03792169]
[1688320641149,0.069691,30467.0,30466.0,0.39872169]
[1688320641550,0.069691,30467.0,30466.0,0.39934145]
[1688320642955,0.00049235,30469.0,30466.0,0.41757114]
[1688320643157,0.00049235,30469.0,30467.0,0.01884945]
[1688320643158,0.02018235,30469.0,30467.0,0.01884945]
[1688320643354,0.02018235,30469.0,30468.0,0.019691]
[1688320643554,0.02018235,30469.0,30468.0,0.03854045]
[1688320643948,0.00049235,30469.0,30468.0,0.66027014]
[1688320647856,0.00049235,30469.0,30468.0,0.019691]
[1688320648855,0.02018235,30469.0,30468.0,0.019691]
[1688320649167,0.00049235,30469.0,30468.0,0.05677014]
[1688320650371,0.62708235,30469.0,30468.0,0.03854045]
[1688320650972,0.60739235,30469.0,30468.0,0.05677014]
[1688320651268,0.60739235,30469.0,30468.0,0.019691]
[1688320651460,0.62708235,30469.0,30468.0,0.019691]
[1688320651659,0.63051744,30469.0,30468.0,0.019691]
[1688320652767,0.63051744,30469.0,30468.0,0.03854045]
[1688320653168,0.63234088,30469.0,30468.0,0.03854045]
[1688320654172,0.63234088,30469.0,30468.0,0.019691]
[1688320654674,0.39324088,30469.0,30468.0,0.019691]
[1688320655878,0.39324088,30469.0,30468.0,0.03854045]
[1688320656070,0.00575088,30469.0,30468.0,0.03854045]
[1688320656271,0.00575088,30469.0,30468.0,0.05677014]
[1688320657175,0.39324088,30469.0,30468.0,0.019691]
[1688320657474,0.39984088,30469.0,30468.0,0.019691]
[1688320657682,0.39984088,30469.0,30466.0,0.780678]
[1688320657683,0.05,30468.0,30466.0,0.059078]
[1688320657872,0.3678,30467.0,30466.0,0.059078]
[1688320658073,0.387492,30467.0,30466.0,0.059078]
[1688320660271,0.3678,30467.0,30466.0,0.09615714]
[1688320660472,0.37078433,30467.0,30466.0,0.09615714]
[1688320661083,0.00298433,30467.0,30466.0,0.46315714]
[1688320661582,0.02018335,30469.0,30466.0,0.46315714]
[1688320661771,0.3647,30468.0,30466.0,0.059078]
[1688320662085,0.384391,30468.0,30467.0,0.03707914]
[1688320662382,0.384391,30468.0,30467.0,0.05677114]
[1688320662676,0.3647,30468.0,30467.0,0.05677114]
[1688320662885,0.00049235,30469.0,30467.0,0.05677114]
[1688320663074,0.00049235,30469.0,30468.0,0.39787914]
[1688320663381,0.00049235,30469.0,30468.0,0.41757014]
[1688320664074,0.00049235,30469.0,30468.0,0.78537014]
[1688320664677,0.00049235,30469.0,30468.0,0.39872069]
[1688320664872,0.00049235,30469.0,30468.0,0.380491]
[1688320665278,0.00049235,30469.0,30468.0,0.39872069]
[1688320665487,0.00049235,30469.0,30468.0,0.41757014]
[1688320667185,0.00049235,30469.0,30468.0,0.78227014]
[1688320667979,0.00049235,30469.0,30468.0,1.14307014]
[1688320668177,0.00049235,30469.0,30468.0,0.39934045]
[1688320668388,0.00049235,30469.0,30468.0,0.380491]
[1688320668788,0.00049235,30469.0,30468.0,0.39872069]
[1688320669284,0.00049235,30469.0,30468.0,0.41757014]
[1688320675590,0.00469663,30469.0,30468.0,0.41757014]
[1688320675986,0.00469663,30469.0,30468.0,0.05677014]
[1688320676186,0.00469663,30469.0,30468.0,0.41757014]
[1688320676491,0.39218663,30469.0,30468.0,0.380491]
[1688320676696,0.38798235,30469.0,30468.0,0.380491]
[1688320678186,0.38798235,30469.0,30468.0,0.019691]
[1688320678392,0.38798235,30469.0,30464.0,0.019693]
[1688320678588,0.3678,30465.0,30464.0,0.019693]
[1688320678784,0.387493,30465.0,30464.0,0.019693]
[1688320680389,0.019693,30465.0,30464.0,0.019693]
[1688320680587,0.05908,30467.0,30464.0,0.387493]
[1688320680790,0.05908,30467.0,30466.0,0.7286]
[1688320680988,0.05908,30467.0,30466.0,0.748292]
[1688320681188,0.019692,30467.0,30466.0,0.387492]
[1688320681388,0.387492,30467.0,30466.0,0.019692]
[1688320681995,0.43501962,30467.0,30466.0,0.019692]
[1688320682195,0.69551661,30467.0,30466.0,0.019692]
[1688320682593,0.9543159,30467.0,30466.0,0.019692]
[1688320682801,1.02221279,30467.0,30466.0,0.019692]
[1688320684102,0.7634135,30467.0,30466.0,0.019692]
[1688320686499,0.4116135,30467.0,30466.0,0.019692]
[1688320686999,0.15111651,30467.0,30466.0,0.019692]
[1688320687794,0.44287849,30467.0,30466.0,0.019692]
[1688320689398,0.8304965,30467.0,30466.0,0.019692]
[1688320689698,0.4912069,30467.0,30466.0,0.019692]
[1688320690001,0.34371665,30467.0,30466.0,0.019692]
[1688320690300,0.29618899,30467.0,30466.0,0.019692]
[1688320690500,0.035692,30467.0,30466.0,0.019692]
[1688320691797,0.31074057,30467.0,30466.0,0.019692]
[1688320692005,0.08321968,30467.0,30466.0,0.019692]
[1688320692593,0.45101968,30467.0,30466.0,0.019692]
[1688320692900,0.45101968,30467.0,30466.0,0.03854145]
[1688320693997,0.403492,30467.0,30466.0,0.39934145]
[1688320694297,0.64595292,30467.0,30466.0,0.39934145]
[1688320694502,0.45101723,30467.0,30466.0,0.39934145]
[1688320695000,0.06352523,30467.0,30466.0,0.41757114]
[1688320695196,0.016,30467.0,30466.0,0.78227114]
[1688320696605,0.19494582,30468.0,30466.0,0.78227114]
[1688320696804,0.19494582,30468.0,30467.0,0.40487914]
[1688320697105,0.26002388,30468.0,30467.0,0.42457114]
[1688320697305,0.04752149,30468.0,30467.0,0.42457114]
[1688320699798,0.06352149,30468.0,30467.0,0.42457114]
[1688320701402,0.0706105,30468.0,30467.0,0.42457114]
[1688320701597,0.25048994,30468.0,30467.0,0.42457114]
[1688320701908,0.0706105,30468.0,30467.0,0.42457114]
[1688320702110,0.02308901,30468.0,30467.0,0.42457114]
[1688320702494,0.07060791,30468.0,30467.0,0.42457114]
[1688320702698,0.02308901,30468.0,30467.0,0.42457114]
[1688320702900,0.21799178,30468.0,30467.0,0.42457114]
[1688320703211,0.21799148,30468.0,30467.0,0.42457114]
[1688320703508,0.02308901,30468.0,30467.0,0.42457114]
[1688320704007,0.07060806,30468.0,30467.0,0.42457114]
[1688320704306,0.02308901,30468.0,30467.0,0.42457114]
[1688320705010,0.02308901,30468.0,30467.0,0.49027114]
[1688320705510,0.00049235,30469.0,30467.0,0.81697114]
[1688320705711,0.00049235,30469.0,30468.0,0.40487914]
[1688320705909,0.00049235,30469.0,30468.0,0.42457014]
[1688320706111,0.45540865,30474.0,30468.0,0.387491]
[1688320706314,0.19491166,30474.0,30473.0,0.3608]
[1688320706612,0.19491166,30474.0,30473.0,0.43488351]
[1688320706804,0.19491166,30474.0,30473.0,0.47196265]
[1688320708116,0.19491166,30475.0,30473.0,0.83666265]
[1688320708310,0.19491166,30475.0,30474.0,0.40487914]
[1688320708511,0.19491166,30475.0,30474.0,0.42456614]
[1688320708815,0.19491166,30476.0,30474.0,0.42456614]
[1688320709017,0.19491166,30476.0,30475.0,0.42456514]
[1688320712017,0.04812976,30476.0,30475.0,0.78536514]
[1688320712806,0.19467887,30476.0,30475.0,0.78536514]
[1688320713009,0.19517109,30477.0,30475.0,0.78536514]
[1688320713217,0.10849397,30477.0,30476.0,0.46977914]
[1688320713412,0.10410929,30477.0,30476.0,0.48946514]
[1688320713919,0.00018313,30478.0,30476.0,0.48946514]
[1688320714114,0.22722718,30479.0,30477.0,0.76567914]
[1688320714304,0.22771935,30480.0,30478.0,0.755284]
[1688320714510,0.22771935,30480.0,30479.0,0.76567914]
[1688320714709,0.00049217,30480.0,30479.0,0.78536314]
[1688320715311,0.22722718,30483.0,30479.0,0.748284]
[1688320715513,0.22722718,30483.0,30482.0,0.7286]
[1688320715812,0.22722718,30483.0,30482.0,0.748282]
[1688320716014,0.22722718,30483.0,30482.0,0.78536114]
[1688320717017,0.22722718,30484.0,30482.0,0.78536114]
[1688320717213,0.22722718,30484.0,30483.0,0.40407914]
[1688320717412,0.22722718,30484.0,30483.0,0.42376014]
[1688320718708,0.22722718,30485.0,30483.0,0.42376014]
[1688320719313,0.22722718,30485.0,30483.0,0.386681]
[1688320719509,0.0548876,30486.0,30484.0,0.03707914]
[1688320719714,0.26827109,30486.0,30485.0,0.62828]
[1688320719916,0.26827109,30486.0,30485.0,0.26748]
[1688320720122,0.26827109,30486.0,30485.0,0.01968]
[1688320720423,0.27985067,30486.0,30485.0,0.01968]
[1688320720625,0.50707785,30486.0,30485.0,0.01968]
[1688320720810,0.32735764,30486.0,30485.0,0.01968]
[1688320721411,0.32735764,30486.0,30484.0,0.049201]
[1688320721612,0.32735764,30486.0,30482.0,0.00049204]
[1688320721613,0.05,30484.0,30482.0,0.00049204]
[1688320721819,0.27590756,30483.0,30482.0,0.00049204]
[1688320722219,0.52410756,30483.0,30482.0,0.00049204]
[1688320722923,0.52410756,30483.0,30477.0,0.059056]
[1688320722924,0.0066,30478.0,30477.0,0.059056]
[1688320723129,0.32887951,30478.0,30477.0,0.059056]
[1688320723420,0.32887951,30478.0,30476.0,0.019685]
[1688320723626,0.266385,30477.0,30476.0,0.019685]
[1688320726418,0.266385,30477.0,30476.0,0.017885]
[1688320726619,0.627185,30477.0,30475.0,0.019686]
[1688320726826,0.627185,30477.0,30473.0,0.05955618]
[1688320726827,0.019687,30475.0,30473.0,0.05955618]
[1688320727132,0.019687,30475.0,30471.0,0.019689]
[1688320727133,0.875987,30474.0,30471.0,0.019689]
[1688320727426,0.2482,30472.0,30471.0,0.019689]
[1688320727725,0.267889,30472.0,30471.0,0.019689]
[1688320728332,0.267889,30472.0,30470.0,0.065632]
[1688320728540,0.2482,30471.0,30469.0,0.38055]
[1688320728732,0.32228551,30470.0,30469.0,0.38055]
[1688320729732,0.32228551,30470.0,30469.0,0.39939945]
[1688320729924,0.32228551,30470.0,30469.0,0.41762914]
[1688320730125,0.32228551,30470.0,30469.0,0.39939945]
[1688320730833,0.26789,30470.0,30469.0,0.39939945]
[1688320731037,0.32228551,30470.0,30469.0,0.39939945]
[1688320731225,0.32228551,30470.0,30469.0,0.38055]
[1688320731426,0.26789,30470.0,30469.0,0.38055]
[1688320731732,0.32228551,30470.0,30469.0,0.38055]
[1688320733439,0.32228551,30470.0,30469.0,0.39939945]
[1688320733930,0.26789,30470.0,30469.0,0.39939945]
[1688320735339,0.26789,30470.0,30469.0,0.38055]
[1688320738343,0.26789,30470.0,30469.0,0.41762914]
[1688320738544,0.26789,30470.0,30469.0,0.39939945]
[1688320740041,0.26789,30470.0,30469.0,0.38055]
[1688320741430,0.62869,30470.0,30469.0,0.01969]
[1688320741743,0.62869,30470.0,30468.0,0.00049226]
[1688320741943,0.26749,30469.0,30468.0,0.00049226]
[1688320742531,0.26749,30469.0,30467.0,0.019692]
[1688320742738,0.2482,30468.0,30467.0,0.019692]
[1688320742936,0.267891,30468.0,30467.0,0.019692]
[1688320743630,0.274491,30468.0,30466.0,0.02674175]
[1688320743943,0.274491,30468.0,30464.0,0.00049233]
[1688320743944,0.267393,30465.0,30464.0,0.00049233]
[1688320744134,0.515593,30465.0,30464.0,0.00049233]
[1688320745235,0.515593,30465.0,30464.0,0.02018633]
[1688320746841,0.267893,30465.0,30464.0,0.02018633]
[1688320747846,0.2482,30465.0,30464.0,0.02018633]
[1688320749146,0.2482,30465.0,30464.0,0.03903578]
[1688320751545,0.2482,30465.0,30464.0,0.02018633]
[1688320752948,0.2482,30465.0,30464.0,0.03903578]
[1688320754339,0.2482,30465.0,30464.0,0.28723578]
[1688320754850,0.2482,30465.0,30464.0,0.30546547]
[1688320758447,0.2482,30468.0,30464.0,0.30546547]
[1688320758653,0.2482,30468.0,30467.0,0.6086]
[1688320758856,0.2482,30468.0,30467.0,0.628292]
[1688320759353,0.2482,30468.0,30467.0,0.66537114]
[1688320761056,0.2482,30468.0,30467.0,0.628292]
[1688320761644,0.1482,30468.0,30467.0,0.66537114]
[1688320762446,0.1482,30468.0,30467.0,0.41757114]
[1688320762645,0.2481,30468.0,30467.0,0.41757114]
[1688320765054,0.44248626,30468.0,30467.0,0.41757114]
[1688320765354,0.2481,30468.0,30467.0,0.41757114]
[1688320765663,0.44248626,30468.0,30467.0,0.41757114]
[1688320768250,0.2481,30468.0,30467.0,0.41757114]
[1688320768959,0.52284984,30468.0,30467.0,0.41757114]
[1688320770154,0.52284984,30468.0,30467.0,0.39934145]
[1688320770755,0.52284984,30468.0,30467.0,0.380492]
[1688320770957,0.52284984,30468.0,30467.0,0.40721033]
[1688320771150,0.52284984,30468.0,30467.0,0.42544002]
[1688320771660,0.52284984,30468.0,30467.0,0.44428947]
[1688320771861,0.29562266,30468.0,30467.0,0.69218947]
[1688320772563,0.2481,30468.0,30467.0,0.69218947]
[1688320775153,0.2481,30468.0,30467.0,1.05298947]
[1688320775353,0.3501,30470.0,30467.0,1.05288947]
[1688320775354,0.19497476,30470.0,30467.0,1.05288947]
[1688320775567,0.44277476,30471.0,30469.0,0.2482]
[1688320775756,0.44277476,30471.0,30470.0,0.628689]
[1688320776153,0.44277476,30471.0,30470.0,0.66576814]
[1688320778165,0.29531829,30471.0,30470.0,0.380489]
[1688320778349,0.29531829,30471.0,30470.0,0.019689]
[1688320778555,0.54223447,30471.0,30470.0,0.019689]
[1688320778754,0.31500729,30471.0,30470.0,0.019689]
[1688320779356,0.64292227,30471.0,30468.0,0.01969]
[1688320779651,0.0066,30468.0,30464.0,0.05957333]
[1688320779851,0.4961,30465.0,30464.0,0.05957333]
[1688320780159,0.83192945,30465.0,30464.0,0.08525384]
[1688320780961,0.79083866,30465.0,30464.0,0.08525384]
[1688320782262,0.79077866,30465.0,30464.0,0.08525384]
[1688320782963,0.79077866,30465.0,30464.0,0.10348353]
[1688320783162,0.29565829,30465.0,30464.0,0.48313298]
[1688320783553,0.19501652,30465.0,30464.0,0.73033298]
[1688320783757,0.44171652,30466.0,30464.0,0.73033298]
[1688320783959,0.44171652,30466.0,30465.0,0.2482]
[1688320784265,0.44171652,30466.0,30465.0,0.30497214]
[1688320785368,0.44171652,30466.0,30465.0,0.66577214]
[1688320786253,0.44171652,30466.0,30465.0,0.64754245]
[1688320786459,0.29422349,30466.0,30465.0,0.628693]
[1688320787260,0.29422349,30466.0,30465.0,0.64754245]
[1688320791968,0.29572349,30466.0,30465.0,0.380493]
[1688320792361,0.55574737,30466.0,30465.0,0.380493]
[1688320793676,0.55574737,30466.0,30465.0,0.39872269]
[1688320794066,0.29572349,30466.0,30465.0,0.41757214]
[1688320795576,0.29572349,30466.0,30465.0,0.39934245]
[1688320796086,0.29572349,30466.0,30465.0,0.380493]
[1688320797575,0.31541549,30466.0,30465.0,0.380493]
[1688320798160,0.61991549,30466.0,30465.0,0.380493]
[1688320800178,0.60022349,30466.0,30465.0,0.28624245]
[1688320800369,0.61991549,30466.0,30465.0,0.019693]
[1688320800769,0.84750983,30466.0,30465.0,0.019693]
[1688320800966,0.0066,30465.0,30464.0,0.02617284]
[1688320801169,0.89604202,30465.0,30460.0,0.019696]
[1688320801379,0.2467,30461.0,30459.0,0.019696]
[1688320801569,0.30898679,30460.0,30459.0,0.019696]
[1688320802286,0.61558679,30460.0,30456.0,0.05958846]
[1688320802470,0.27510254,30459.0,30458.0,0.019697]
[1688320802780,0.52330254,30459.0,30458.0,0.019697]
[1688320802979,0.52330254,30459.0,30458.0,0.380497]
[1688320803278,0.2482,30459.0,30458.0,0.380497]
[1688320803588,0.2482,30459.0,30458.0,0.41757614]
[1688320804177,0.2482,30459.0,30458.0,0.380497]
[1688320804572,0.31542843,30459.0,30458.0,0.380497]
[1688320804775,0.54299552,30459.0,30458.0,0.380497]
[1688320804973,0.31542843,30459.0,30456.0,0.08560469]
[1688320805167,0.31542843,30459.0,30456.0,0.02650869]
[1688320805168,0.47566989,30457.0,30456.0,0.02650869]
[1688320805373,0.267398,30457.0,30456.0,0.00511389]
[1688320805673,0.265998,30456.0,30454.0,0.04601413]
[1688320805872,0.267899,30455.0,30454.0,0.04601413]
[1688320806073,0.267899,30455.0,30454.0,0.01988202]
[1688320806272,0.267899,30455.0,30454.0,0.00018402]
[1688320806581,0.50174941,30455.0,30454.0,0.00018402]
[1688320807374,0.267899,30455.0,30454.0,0.04637421]
[1688320807971,0.267899,30455.0,30454.0,0.01988302]
[1688320808682,0.267899,30455.0,30454.0,0.0275252]
[1688320808878,0.267899,30455.0,30454.0,0.04637465]
[1688320809182,0.2482,30455.0,30454.0,0.04637465]
[1688320809367,0.2482,30456.0,30454.0,0.31280434]
[1688320809568,0.05,30458.0,30455.0,0.26654945]
[1688320809776,0.05,30458.0,30457.0,0.609]